[Event "*** SCC Grand Prix: Titled Tuesday Blitz"]
[Site "Chess.com"]
[Date "2020.10.13"]
[Round "1"]
[White "ajedrezhoy"]
[Black "SamuelGhimpu2003"]
[Result "0-1"]
[WhiteElo "2215"]
[BlackElo "2562"]
[TimeControl "180+1"]
[EndTime "10:06:38 PDT"]
[Termination "SamuelGhimpu2003 won on time"]

1. Nf3 {[%clk 0:02:59.2]} 1... Nf6 {[%clk 0:02:59.7]} 2. b3 {[%clk 0:02:58.2]}
2... d5 {[%clk 0:02:49.9]} 3. Bb2 {[%clk 0:02:57.5]} 3... Bf5 {[%clk 0:02:50.4]}
4. d3 {[%clk 0:02:55.1]} 4... e6 {[%clk 0:02:48.6]} 5. Nbd2 {[%clk 0:02:54.1]}
5... Bc5 {[%clk 0:02:48.1]} 6. e3 {[%clk 0:02:27.7]} 6... a5 {[%clk 0:02:45.6]}
7. a4 {[%clk 0:02:26.8]} 7... h6 {[%clk 0:02:41.4]} 8. g3 {[%clk 0:02:26]} 8...
O-O {[%clk 0:02:37.8]} 9. Bg2 {[%clk 0:02:26]} 9... Re8 {[%clk 0:02:35.5]} 10.
O-O {[%clk 0:02:25.3]} 10... Nc6 {[%clk 0:02:35.2]} 11. Ne5 {[%clk 0:02:08.6]}
11... Nxe5 {[%clk 0:02:32.9]} 12. Bxe5 {[%clk 0:02:07.9]} 12... Bd6 {[%clk
0:02:33.8]} 13. Bb2 {[%clk 0:01:37.8]} 13... e5 {[%clk 0:02:32.3]} 14. e4 {[%clk
0:01:32.5]} 14... Bg4 {[%clk 0:02:29.5]} 15. Bf3 {[%clk 0:01:20.2]} 15... Bh3
{[%clk 0:02:29.7]} 16. Bg2 {[%clk 0:01:14.1]} 16... Bxg2 {[%clk 0:02:29.6]} 17.
Kxg2 {[%clk 0:01:13.6]} 17... c6 {[%clk 0:02:30.5]} 18. Qe2 {[%clk 0:01:11.1]}
18... Qc7 {[%clk 0:02:25.4]} 19. Nf3 {[%clk 0:01:00.3]} 19... Nd7 {[%clk
0:02:05.2]} 20. Nh4 {[%clk 0:00:56]} 20... g6 {[%clk 0:02:05.4]} 21. Qg4 {[%clk
0:00:38.5]} 21... Kh7 {[%clk 0:01:55.4]} 22. Rae1 {[%clk 0:00:31.7]} 22... dxe4
{[%clk 0:01:37.8]} 23. dxe4 {[%clk 0:00:29.9]} 23... b5 {[%clk 0:01:28.6]} 24.
Rd1 {[%clk 0:00:27.1]} 24... bxa4 {[%clk 0:01:17]} 25. Rxd6 {[%clk 0:00:22.5]}
25... Qxd6 {[%clk 0:01:14.4]} 26. Rd1 {[%clk 0:00:22.2]} 26... Nf6 {[%clk
0:01:09.6]} 27. Qf3 {[%clk 0:00:19.1]} 27... Qe6 {[%clk 0:00:58.1]} 28. bxa4
{[%clk 0:00:17.5]} 28... Red8 {[%clk 0:00:53]} 29. Rb1 {[%clk 0:00:10.7]} 29...
Rab8 {[%clk 0:00:50.7]} 30. Qc3 {[%clk 0:00:05.8]} 30... Nxe4 {[%clk 0:00:46.3]}
31. Qf3 {[%clk 0:00:03.5]} 31... Nd2 {[%clk 0:00:44.5]} 0-1

[Event "*** SCC Grand Prix: Titled Tuesday Blitz"]
[Site "Chess.com"]
[Date "2020.10.13"]
[Round "1"]
[White "Brave_spirit12"]
[Black "LiemLe"]
[Result "0-1"]
[WhiteElo "2488"]
[BlackElo "2978"]
[TimeControl "180+1"]
[EndTime "10:06:44 PDT"]
[Termination "LiemLe won by resignation"]

1. e4 {[%clk 0:02:58.6]} 1... c5 {[%clk 0:02:59.2]} 2. c3 {[%clk 0:02:58]} 2...
Nf6 {[%clk 0:02:58.2]} 3. e5 {[%clk 0:02:57.9]} 3... Nd5 {[%clk 0:02:58.5]} 4.
d4 {[%clk 0:02:57.9]} 4... cxd4 {[%clk 0:02:59.4]} 5. cxd4 {[%clk 0:02:58.8]}
5... d6 {[%clk 0:02:59.5]} 6. Nf3 {[%clk 0:02:58.2]} 6... Nc6 {[%clk 0:02:59.5]}
7. Nc3 {[%clk 0:02:58.1]} 7... Nxc3 {[%clk 0:02:59.5]} 8. bxc3 {[%clk 0:02:59]}
8... e6 {[%clk 0:02:58.6]} 9. Bd3 {[%clk 0:02:57.7]} 9... dxe5 {[%clk
0:02:57.8]} 10. dxe5 {[%clk 0:02:45.9]} 10... Qa5 {[%clk 0:02:52.3]} 11. O-O
{[%clk 0:02:03.7]} 11... Nxe5 {[%clk 0:02:51.7]} 12. Nxe5 {[%clk 0:01:41.8]}
12... Qxe5 {[%clk 0:02:52.6]} 13. Re1 {[%clk 0:01:36.6]} 13... Qc7 {[%clk
0:02:49.1]} 14. Bb5+ {[%clk 0:01:30.7]} 14... Bd7 {[%clk 0:02:48.1]} 15. Bf4
{[%clk 0:01:30.7]} 15... Qc8 {[%clk 0:02:44.4]} 16. Bxd7+ {[%clk 0:00:47.7]}
16... Qxd7 {[%clk 0:02:45.3]} 17. Qf3 {[%clk 0:00:48.2]} 17... Bc5 {[%clk
0:02:29.6]} 18. Rad1 {[%clk 0:00:47.9]} 18... Qe7 {[%clk 0:02:14.8]} 19. Rb1
{[%clk 0:00:33.6]} 19... O-O {[%clk 0:01:56.3]} 20. Rxb7 {[%clk 0:00:32.3]}
20... Qf6 {[%clk 0:01:56.9]} 21. Rd1 {[%clk 0:00:21.2]} 21... Rad8 {[%clk
0:01:53.1]} 22. Rbd7 {[%clk 0:00:19.8]} 22... Rxd7 {[%clk 0:01:51.9]} 23. Rxd7
{[%clk 0:00:20.7]} 23... h6 {[%clk 0:01:45.9]} 24. h3 {[%clk 0:00:18.1]} 24...
Bb6 {[%clk 0:01:36.6]} 25. Be3 {[%clk 0:00:14.3]} 25... Qxc3 {[%clk 0:01:35.7]}
26. Bxb6 {[%clk 0:00:13.6]} 26... Qxf3 {[%clk 0:01:35.8]} 27. gxf3 {[%clk
0:00:13.1]} 27... axb6 {[%clk 0:01:36.7]} 28. Rb7 {[%clk 0:00:11.5]} 28... Ra8
{[%clk 0:01:36.6]} 29. Rxb6 {[%clk 0:00:12]} 29... Rxa2 {[%clk 0:01:37.2]} 30.
Kg2 {[%clk 0:00:12.9]} 30... Ra4 {[%clk 0:01:34.6]} 31. Kg3 {[%clk 0:00:13]}
31... g5 {[%clk 0:01:35.1]} 32. Rb8+ {[%clk 0:00:12.4]} 32... Kg7 {[%clk
0:01:35.4]} 33. Rb5 {[%clk 0:00:13]} 33... Kg6 {[%clk 0:01:34.9]} 34. Rb8 {[%clk
0:00:13.1]} 34... h5 {[%clk 0:01:34]} 35. Rg8+ {[%clk 0:00:12.1]} 35... Kf5
{[%clk 0:01:34.3]} 36. Rb8 {[%clk 0:00:13]} 36... f6 {[%clk 0:01:32.3]} 37. Rh8
{[%clk 0:00:10.9]} 37... h4+ {[%clk 0:01:29.9]} 38. Kg2 {[%clk 0:00:11.2]} 38...
e5 {[%clk 0:01:28.6]} 39. Re8 {[%clk 0:00:10.4]} 39... Kf4 {[%clk 0:01:28.4]}
40. Rf8 {[%clk 0:00:08.8]} 40... f5 {[%clk 0:01:26.2]} 41. Rf7 {[%clk
0:00:09.2]} 41... Ra3 {[%clk 0:01:25.9]} 42. Rf8 {[%clk 0:00:04.9]} 42... Rxf3
{[%clk 0:01:25]} 43. Rxf5+ {[%clk 0:00:05.3]} 43... Kxf5 {[%clk 0:01:25.9]} 44.
Kxf3 {[%clk 0:00:06.2]} 44... g4+ {[%clk 0:01:10.3]} 45. hxg4+ {[%clk
0:00:06.3]} 45... Kg5 {[%clk 0:01:10.8]} 46. Ke4 {[%clk 0:00:03.9]} 46... Kxg4
{[%clk 0:01:11.7]} 47. Kxe5 {[%clk 0:00:04.4]} 47... Kf3 {[%clk 0:01:11.2]} 48.
Kf5 {[%clk 0:00:04.4]} 48... h3 {[%clk 0:01:11.8]} 0-1

[Event "*** SCC Grand Prix: Titled Tuesday Blitz"]
[Site "Chess.com"]
[Date "2020.10.13"]
[Round "1"]
[White "WuinaterJr"]
[Black "mr65"]
[Result "1-0"]
[WhiteElo "2533"]
[BlackElo "2156"]
[TimeControl "180+1"]
[EndTime "10:06:46 PDT"]
[Termination "WuinaterJr won by resignation"]

1. e4 {[%clk 0:02:59.8]} 1... e5 {[%clk 0:02:59]} 2. Nf3 {[%clk 0:03:00]} 2...
Nc6 {[%clk 0:02:59]} 3. Bb5 {[%clk 0:02:59.7]} 3... a6 {[%clk 0:02:58.6]} 4. Ba4
{[%clk 0:02:59.6]} 4... Nf6 {[%clk 0:02:58.4]} 5. O-O {[%clk 0:02:59]} 5... Be7
{[%clk 0:02:58.4]} 6. Re1 {[%clk 0:02:58.6]} 6... b5 {[%clk 0:02:58.1]} 7. Bb3
{[%clk 0:02:58.6]} 7... O-O {[%clk 0:02:57.7]} 8. a4 {[%clk 0:02:57.1]} 8... b4
{[%clk 0:02:56.5]} 9. d4 {[%clk 0:02:57.1]} 9... d6 {[%clk 0:02:51.6]} 10. dxe5
{[%clk 0:02:54.7]} 10... dxe5 {[%clk 0:02:48.6]} 11. h3 {[%clk 0:02:45.1]} 11...
Qxd1 {[%clk 0:02:37]} 12. Rxd1 {[%clk 0:02:44.3]} 12... Bb7 {[%clk 0:02:36.9]}
13. Bg5 {[%clk 0:02:32.8]} 13... Na5 {[%clk 0:02:17.5]} 14. Bxf6 {[%clk
0:02:19.6]} 14... Bxf6 {[%clk 0:02:11.6]} 15. Nbd2 {[%clk 0:02:11.7]} 15... Nxb3
{[%clk 0:02:06.1]} 16. cxb3 {[%clk 0:02:07.6]} 16... Rfd8 {[%clk 0:02:01]} 17.
Rac1 {[%clk 0:02:07.1]} 17... Rd7 {[%clk 0:01:55.1]} 18. Re1 {[%clk 0:01:58.3]}
18... Rad8 {[%clk 0:01:42.8]} 19. Nc4 {[%clk 0:01:57.3]} 19... Rd3 {[%clk
0:01:26.1]} 20. Na5 {[%clk 0:01:46.8]} 20... Ba8 {[%clk 0:01:20.6]} 21. Rxc7
{[%clk 0:01:46.6]} 21... Rd1 {[%clk 0:01:17]} 22. Nc6 {[%clk 0:01:26.4]} 22...
Rxe1+ {[%clk 0:00:53.5]} 23. Nxe1 {[%clk 0:01:27.3]} 23... Bxc6 {[%clk
0:00:37.3]} 24. Rxc6 {[%clk 0:01:28.2]} 24... Bg5 {[%clk 0:00:28.2]} 25. Rxa6
{[%clk 0:01:26.1]} 25... h5 {[%clk 0:00:27]} 26. Nf3 {[%clk 0:01:20.2]} 26...
Bc1 {[%clk 0:00:25.8]} 27. Rb6 {[%clk 0:01:16.4]} 27... Rd1+ {[%clk 0:00:19.7]}
28. Kh2 {[%clk 0:01:16.3]} 28... Bxb2 {[%clk 0:00:19.7]} 29. Rxb4 {[%clk
0:01:16.1]} 29... Bd4 {[%clk 0:00:19.5]} 30. Nxd4 {[%clk 0:01:11.4]} 30... exd4
{[%clk 0:00:19.3]} 31. a5 {[%clk 0:01:11.5]} 31... d3 {[%clk 0:00:17.7]} 32. Rd4
{[%clk 0:01:02.7]} 32... d2 {[%clk 0:00:16.7]} 33. b4 {[%clk 0:01:00.3]} 33...
Rb1 {[%clk 0:00:16]} 34. Rxd2 {[%clk 0:00:59.9]} 34... Rxb4 {[%clk 0:00:15.8]}
35. Ra2 {[%clk 0:01:00.5]} 35... Rxe4 {[%clk 0:00:15.5]} 36. a6 {[%clk
0:00:56.6]} 36... Re8 {[%clk 0:00:15.2]} 37. Kg3 {[%clk 0:00:57.3]} 37... Ra8
{[%clk 0:00:14.5]} 38. Kf4 {[%clk 0:00:58]} 38... Ra7 {[%clk 0:00:14.1]} 39. Ke5
{[%clk 0:00:58.3]} 39... Kf8 {[%clk 0:00:13.9]} 40. Kd6 {[%clk 0:00:59]} 40...
Ke8 {[%clk 0:00:13.2]} 41. Kc6 {[%clk 0:00:59.7]} 41... Ke7 {[%clk 0:00:12.2]}
42. Kb6 {[%clk 0:01:00.2]} 42... Ra8 {[%clk 0:00:11.8]} 43. a7 {[%clk
0:01:00.7]} 43... Rd8 {[%clk 0:00:11.5]} 44. a8=Q {[%clk 0:01:00.4]} 44... Rxa8
{[%clk 0:00:10.6]} 45. Rxa8 {[%clk 0:01:01.3]} 1-0

[Event "*** SCC Grand Prix: Titled Tuesday Blitz"]
[Site "Chess.com"]
[Date "2020.10.13"]
[Round "1"]
[White "PattyCastillo"]
[Black "redbaron8888"]
[Result "0-1"]
[WhiteElo "2008"]
[BlackElo "2509"]
[TimeControl "180+1"]
[EndTime "10:06:47 PDT"]
[Termination "redbaron8888 won by resignation"]

1. d4 {[%clk 0:03:00.1]} 1... Nf6 {[%clk 0:02:59.2]} 2. Nf3 {[%clk 0:02:59.3]}
2... e6 {[%clk 0:02:59.4]} 3. e3 {[%clk 0:02:59.2]} 3... d5 {[%clk 0:02:56.4]}
4. Bd3 {[%clk 0:02:59]} 4... c5 {[%clk 0:02:56.5]} 5. b3 {[%clk 0:02:59.2]} 5...
Nc6 {[%clk 0:02:56.3]} 6. Bb2 {[%clk 0:02:59.2]} 6... Be7 {[%clk 0:02:55.1]} 7.
O-O {[%clk 0:02:58.9]} 7... O-O {[%clk 0:02:54.8]} 8. Nbd2 {[%clk 0:02:58.7]}
8... b6 {[%clk 0:02:47.2]} 9. Ne5 {[%clk 0:02:57]} 9... Nxe5 {[%clk 0:02:45.9]}
10. dxe5 {[%clk 0:02:57.9]} 10... Nd7 {[%clk 0:02:46.1]} 11. f4 {[%clk
0:02:57.4]} 11... Bb7 {[%clk 0:02:42.7]} 12. Rf3 {[%clk 0:02:46.3]} 12... f5
{[%clk 0:02:37.9]} 13. Rh3 {[%clk 0:02:43.3]} 13... Rf7 {[%clk 0:02:18.8]} 14.
Nf3 {[%clk 0:02:31.3]} 14... Rc8 {[%clk 0:02:12.6]} 15. Qe2 {[%clk 0:02:16.1]}
15... Nf8 {[%clk 0:01:57.3]} 16. Rd1 {[%clk 0:02:12]} 16... Qc7 {[%clk
0:01:39.5]} 17. Ng5 {[%clk 0:02:03.5]} 17... Bxg5 {[%clk 0:01:38.4]} 18. fxg5
{[%clk 0:02:04.4]} 18... c4 {[%clk 0:01:34.1]} 19. bxc4 {[%clk 0:02:01.4]} 19...
dxc4 {[%clk 0:01:35]} 20. Bxf5 {[%clk 0:01:43.1]} 20... Rxf5 {[%clk 0:01:28.8]}
21. Rd6 {[%clk 0:01:23]} 21... c3 {[%clk 0:01:23.7]} 22. Ba3 {[%clk 0:01:19.8]}
22... Rxg5 {[%clk 0:01:16.2]} 23. Rg3 {[%clk 0:01:04.4]} 23... Rxg3 {[%clk
0:01:14.1]} 24. hxg3 {[%clk 0:01:05.3]} 24... Qc4 {[%clk 0:01:02.7]} 25. Qh5
{[%clk 0:00:55.6]} 25... Qe4 {[%clk 0:00:56.7]} 26. Qh3 {[%clk 0:00:51.3]} 26...
Qxe3+ {[%clk 0:00:53.3]} 27. Kh2 {[%clk 0:00:50.3]} 27... Qxe5 {[%clk
0:00:49.4]} 28. Qh4 {[%clk 0:00:30.5]} 28... Qe4 {[%clk 0:00:42.7]} 29. Qh3
{[%clk 0:00:27.6]} 29... Bd5 {[%clk 0:00:39.9]} 30. Bc1 {[%clk 0:00:13]} 30...
Qxc2 {[%clk 0:00:35.6]} 31. Bf4 {[%clk 0:00:10.3]} 31... Qxg2+ {[%clk
0:00:34.1]} 32. Qxg2 {[%clk 0:00:08.2]} 32... Bxg2 {[%clk 0:00:35]} 33. Kxg2
{[%clk 0:00:08.9]} 33... c2 {[%clk 0:00:35.2]} 0-1

[Event "*** SCC Grand Prix: Titled Tuesday Blitz"]
[Site "Chess.com"]
[Date "2020.10.13"]
[Round "1"]
[White "Piotrek1979"]
[Black "crescentmoon2411"]
[Result "0-1"]
[WhiteElo "2417"]
[BlackElo "2816"]
[TimeControl "180+1"]
[EndTime "10:06:48 PDT"]
[Termination "crescentmoon2411 won by resignation"]

1. d4 {[%clk 0:02:58.5]} 1... Nf6 {[%clk 0:02:59.8]} 2. c4 {[%clk 0:02:56.9]}
2... c5 {[%clk 0:03:00.2]} 3. Nf3 {[%clk 0:02:45.5]} 3... cxd4 {[%clk
0:02:59.6]} 4. Nxd4 {[%clk 0:02:45.1]} 4... Nc6 {[%clk 0:02:58.4]} 5. Nc3 {[%clk
0:02:42.5]} 5... e6 {[%clk 0:02:58.4]} 6. e3 {[%clk 0:02:32.4]} 6... Be7 {[%clk
0:02:51.4]} 7. Be2 {[%clk 0:02:32.3]} 7... O-O {[%clk 0:02:51]} 8. O-O {[%clk
0:02:32.9]} 8... d5 {[%clk 0:02:30.4]} 9. cxd5 {[%clk 0:02:30.4]} 9... Nxd5
{[%clk 0:02:20.9]} 10. Nxd5 {[%clk 0:02:28.9]} 10... exd5 {[%clk 0:02:16.8]} 11.
b3 {[%clk 0:02:11.8]} 11... Nxd4 {[%clk 0:02:15.5]} 12. exd4 {[%clk 0:02:12.7]}
12... Bf5 {[%clk 0:02:12.5]} 13. Bd3 {[%clk 0:02:01.6]} 13... Qd7 {[%clk
0:02:09.4]} 14. Bf4 {[%clk 0:01:51.4]} 14... Rac8 {[%clk 0:02:07.8]} 15. Re1
{[%clk 0:01:49.6]} 15... Bb4 {[%clk 0:02:05.1]} 16. Re5 {[%clk 0:01:45.8]} 16...
Bg6 {[%clk 0:01:53.4]} 17. Bxg6 {[%clk 0:01:21.2]} 17... hxg6 {[%clk 0:01:54.3]}
18. Qf3 {[%clk 0:01:18.1]} 18... Rfd8 {[%clk 0:01:53.9]} 19. Rd1 {[%clk
0:01:15.5]} 19... f6 {[%clk 0:01:49.6]} 20. Re2 {[%clk 0:01:14.1]} 20... Qf5
{[%clk 0:01:44.2]} 21. Bd2 {[%clk 0:01:07.8]} 21... Qxf3 {[%clk 0:01:43.8]} 22.
gxf3 {[%clk 0:01:07.9]} 22... Bd6 {[%clk 0:01:43.7]} 23. Be3 {[%clk 0:01:00.6]}
23... g5 {[%clk 0:01:42.1]} 24. h3 {[%clk 0:00:59]} 24... Kf7 {[%clk 0:01:42]}
25. Kg2 {[%clk 0:00:59]} 25... Rc6 {[%clk 0:01:40.3]} 26. Rc1 {[%clk 0:00:58.8]}
26... Rdc8 {[%clk 0:01:39.4]} 27. Rxc6 {[%clk 0:00:58.2]} 27... Rxc6 {[%clk
0:01:40.3]} 28. Rd2 {[%clk 0:00:47.2]} 28... Rc3 {[%clk 0:01:34.4]} 29. Kf1
{[%clk 0:00:45.4]} 29... b5 {[%clk 0:01:31.8]} 30. Kg2 {[%clk 0:00:43.2]} 30...
a5 {[%clk 0:01:30.4]} 31. Re2 {[%clk 0:00:37]} 31... Rc8 {[%clk 0:01:23.3]} 32.
Rd2 {[%clk 0:00:35.7]} 32... Ke6 {[%clk 0:01:01.5]} 33. Re2 {[%clk 0:00:32.5]}
33... Kd7 {[%clk 0:01:01.7]} 34. h4 {[%clk 0:00:27.7]} 34... gxh4 {[%clk
0:01:00.9]} 35. Kh3 {[%clk 0:00:28.4]} 35... g5 {[%clk 0:00:59.9]} 36. Kg4
{[%clk 0:00:28.5]} 36... Rh8 {[%clk 0:00:58.4]} 37. f4 {[%clk 0:00:27]} 37... h3
{[%clk 0:00:57.4]} 38. Re1 {[%clk 0:00:24]} 38... h2 {[%clk 0:00:57.5]} 39. Rh1
{[%clk 0:00:24]} 39... Bxf4 {[%clk 0:00:55.6]} 40. Kf5 {[%clk 0:00:18.6]} 40...
Bxe3 {[%clk 0:00:50.4]} 41. fxe3 {[%clk 0:00:19.5]} 41... Rh3 {[%clk 0:00:43.2]}
42. Kxf6 {[%clk 0:00:17.6]} 42... g4 {[%clk 0:00:43]} 0-1

[Event "*** SCC Grand Prix: Titled Tuesday Blitz"]
[Site "Chess.com"]
[Date "2020.10.13"]
[Round "1"]
[White "biostatistician"]
[Black "Vision_64"]
[Result "1-0"]
[WhiteElo "2561"]
[BlackElo "2208"]
[TimeControl "180+1"]
[EndTime "10:06:49 PDT"]
[Termination "biostatistician won on time"]

1. d4 {[%clk 0:02:59]} 1... Nf6 {[%clk 0:02:59.5]} 2. Nf3 {[%clk 0:02:59.9]}
2... e6 {[%clk 0:02:57.8]} 3. c4 {[%clk 0:03:00.2]} 3... b6 {[%clk 0:02:57.4]}
4. Nc3 {[%clk 0:03:00.3]} 4... Bb7 {[%clk 0:02:56.9]} 5. Bg5 {[%clk 0:03:00.4]}
5... Be7 {[%clk 0:02:53.1]} 6. e3 {[%clk 0:03:00.7]} 6... d5 {[%clk 0:02:50.2]}
7. Bd3 {[%clk 0:02:57.7]} 7... O-O {[%clk 0:02:49]} 8. O-O {[%clk 0:02:57.8]}
8... Nbd7 {[%clk 0:02:48.8]} 9. Qe2 {[%clk 0:02:57.7]} 9... c5 {[%clk
0:02:34.4]} 10. Rad1 {[%clk 0:02:55.9]} 10... cxd4 {[%clk 0:02:25.7]} 11. exd4
{[%clk 0:02:55.6]} 11... Re8 {[%clk 0:02:22.5]} 12. Rfe1 {[%clk 0:02:54.6]}
12... dxc4 {[%clk 0:02:14.7]} 13. Bxc4 {[%clk 0:02:55.5]} 13... h6 {[%clk
0:02:02.7]} 14. Bh4 {[%clk 0:02:42.8]} 14... Nd5 {[%clk 0:01:34.8]} 15. Bxe7
{[%clk 0:02:30.4]} 15... Nxe7 {[%clk 0:01:19.1]} 16. Ne5 {[%clk 0:02:09.7]}
16... Nd5 {[%clk 0:00:42.4]} 17. Bb5 {[%clk 0:01:53.1]} 17... Nxc3 {[%clk
0:00:16.6]} 18. bxc3 {[%clk 0:01:54]} 18... Re7 {[%clk 0:00:16.5]} 19. Bxd7
{[%clk 0:01:49.1]} 19... Rxd7 {[%clk 0:00:14.6]} 20. Nxd7 {[%clk 0:01:49.6]}
20... Qxd7 {[%clk 0:00:15.4]} 21. c4 {[%clk 0:01:48.9]} 21... Rc8 {[%clk
0:00:13.9]} 22. d5 {[%clk 0:01:48.1]} 22... exd5 {[%clk 0:00:13.2]} 23. cxd5
{[%clk 0:01:49]} 23... Bxd5 {[%clk 0:00:12.7]} 24. Qe5 {[%clk 0:01:43.1]} 24...
Rc5 {[%clk 0:00:11.6]} 25. Qe8+ {[%clk 0:01:30.8]} 25... Qxe8 {[%clk 0:00:11.8]}
26. Rxe8+ {[%clk 0:01:31.6]} 26... Kh7 {[%clk 0:00:12.3]} 27. Re5 {[%clk
0:01:30.4]} 27... Be6 {[%clk 0:00:08]} 28. Rxc5 {[%clk 0:01:30.3]} 28... bxc5
{[%clk 0:00:08.9]} 29. a3 {[%clk 0:01:26.2]} 29... c4 {[%clk 0:00:09.2]} 30. f4
{[%clk 0:01:24.4]} 30... Kg6 {[%clk 0:00:09.5]} 31. Kf2 {[%clk 0:01:24.4]} 31...
Kf5 {[%clk 0:00:09.3]} 32. Ke3 {[%clk 0:01:24.9]} 32... h5 {[%clk 0:00:08.4]}
33. Rb1 {[%clk 0:01:07.9]} 33... g5 {[%clk 0:00:08.2]} 34. Rb5+ {[%clk
0:01:07.5]} 34... Kf6 {[%clk 0:00:06.9]} 35. Rxg5 {[%clk 0:01:06]} 35... h4
{[%clk 0:00:06.9]} 36. Rh5 {[%clk 0:01:05.7]} 36... h3 {[%clk 0:00:06.3]} 37.
gxh3 {[%clk 0:01:05.2]} 37... Bf5 {[%clk 0:00:06.8]} 38. Kd4 {[%clk 0:01:03.7]}
38... c3 {[%clk 0:00:03.6]} 39. Kxc3 {[%clk 0:01:03.9]} 39... Bg6 {[%clk
0:00:03]} 40. Ra5 {[%clk 0:01:03.3]} 1-0

[Event "*** SCC Grand Prix: Titled Tuesday Blitz"]
[Site "Chess.com"]
[Date "2020.10.13"]
[Round "1"]
[White "bratkoo"]
[Black "parnali1611"]
[Result "1-0"]
[WhiteElo "2538"]
[BlackElo "2157"]
[TimeControl "180+1"]
[EndTime "10:06:50 PDT"]
[Termination "bratkoo won on time"]

1. e4 {[%clk 0:03:00.9]} 1... e5 {[%clk 0:02:28.7]} 2. Nf3 {[%clk 0:03:00.3]}
2... Nc6 {[%clk 0:02:28.4]} 3. Bc4 {[%clk 0:03:00.8]} 3... Nf6 {[%clk
0:02:27.9]} 4. O-O {[%clk 0:02:58.8]} 4... Bc5 {[%clk 0:02:25.6]} 5. d3 {[%clk
0:02:56.1]} 5... h6 {[%clk 0:02:22.1]} 6. a4 {[%clk 0:02:56.4]} 6... d6 {[%clk
0:02:19.1]} 7. a5 {[%clk 0:02:53.5]} 7... a6 {[%clk 0:02:18.7]} 8. c3 {[%clk
0:02:51.7]} 8... Bg4 {[%clk 0:02:17.5]} 9. b4 {[%clk 0:02:49.6]} 9... Ba7 {[%clk
0:02:14.8]} 10. Be3 {[%clk 0:02:47.8]} 10... O-O {[%clk 0:02:09.8]} 11. h3
{[%clk 0:02:41.3]} 11... Be6 {[%clk 0:02:06.8]} 12. Nbd2 {[%clk 0:02:38]} 12...
Qd7 {[%clk 0:01:56.5]} 13. Bxa7 {[%clk 0:02:36.8]} 13... Rxa7 {[%clk 0:01:53.4]}
14. Qb3 {[%clk 0:02:33.4]} 14... Ne7 {[%clk 0:01:45.4]} 15. Rfe1 {[%clk
0:02:28.9]} 15... Ng6 {[%clk 0:01:37.4]} 16. d4 {[%clk 0:02:27.7]} 16... Nf4
{[%clk 0:01:24.4]} 17. Bxe6 {[%clk 0:02:21.6]} 17... fxe6 {[%clk 0:01:21.9]} 18.
dxe5 {[%clk 0:02:21.8]} 18... dxe5 {[%clk 0:01:21.3]} 19. Nc4 {[%clk 0:02:21.8]}
19... N6h5 {[%clk 0:00:42.6]} 20. Ncxe5 {[%clk 0:02:19.8]} 20... Qe7 {[%clk
0:00:39.4]} 21. Rad1 {[%clk 0:02:16]} 21... Nxg2 {[%clk 0:00:30.4]} 22. Kxg2
{[%clk 0:02:11.4]} 22... Nf4+ {[%clk 0:00:30]} 23. Kh2 {[%clk 0:02:09.6]} 23...
Qf6 {[%clk 0:00:22.9]} 24. Rd7 {[%clk 0:02:02.5]} 24... Ng6 {[%clk 0:00:18.2]}
25. Nxg6 {[%clk 0:01:45]} 25... Qxg6 {[%clk 0:00:13.3]} 26. Rg1 {[%clk
0:01:42.4]} 26... Qxe4 {[%clk 0:00:09.5]} 27. Rgxg7+ {[%clk 0:01:38]} 27... Kh8
{[%clk 0:00:09.7]} 28. Rh7+ {[%clk 0:01:38.2]} 28... Qxh7 {[%clk 0:00:10]} 29.
Rxh7+ {[%clk 0:01:39]} 29... Kxh7 {[%clk 0:00:10.9]} 30. Qxe6 {[%clk 0:01:39.3]}
30... Raa8 {[%clk 0:00:10.4]} 31. Qe7+ {[%clk 0:01:33.5]} 31... Kh8 {[%clk
0:00:09]} 32. Ne5 {[%clk 0:01:31.2]} 32... Rxf2+ {[%clk 0:00:08.8]} 33. Kg3
{[%clk 0:01:31.6]} 33... Rf1 {[%clk 0:00:05.3]} 34. Nf7+ {[%clk 0:01:21.6]}
34... Kg7 {[%clk 0:00:04.4]} 35. Ng5+ {[%clk 0:00:59.7]} 35... Kg6 {[%clk
0:00:03.9]} 36. Ne6 {[%clk 0:00:59.9]} 36... Rg8 {[%clk 0:00:02]} 37. Kg2 {[%clk
0:00:47.4]} 1-0